bitfinex/quotes_ETHUSD_20241215
["timestamp","ask_amount","ask_price","bid_price","bid_amount"]
[1734269170894,1.07462868,3884.9,3884.7,1.14112014]
[1734269171095,1.07462868,3884.9,3884.7,0.8001]
[1734269171526,1.07462868,3884.9,3884.7,3.3743]
[1734269173003,1.07462868,3884.9,3884.8,3.37423]
[1734269173445,2.31565619,3885.0,3884.9,2.57406]
[1734269173749,2.31619206,3885.0,3884.9,3.33236]
[1734269174332,2.31619206,3885.0,3884.9,3.665596]
[1734269174531,1.07462868,3885.0,3884.9,3.665596]
[1734269176455,1.07462868,3885.0,3884.9,3.70112249]
[1734269176656,2.31657941,3885.0,3884.9,3.70112249]
[1734269177264,1.07462868,3885.0,3884.9,3.70112249]
[1734269177522,1.07462868,3885.0,3884.9,1.12706249]
[1734269177831,2.14925736,3885.0,3884.9,0.03552649]
[1734269178065,1.24195073,3885.0,3884.2,0.7583]
[1734269178265,1.07699087,3884.5,3884.2,0.7583]
[1734269178465,2.3189416,3884.4,3884.3,0.03310365]
[1734269178667,2.3189416,3884.4,3884.2,0.7583]
[1734269178872,1.07699087,3884.4,3884.2,1.09159]
[1734269179046,1.07699087,3884.5,3884.3,0.03310365]
[1734269179230,1.07699087,3884.5,3884.2,3.33281]
[1734269179568,1.07699087,3884.5,3884.3,0.03310365]
[1734269179569,2.3183906,3884.5,3884.3,0.03310365]
[1734269179791,1.24139973,3884.4,3884.3,0.03310365]
[1734269179929,1.07699087,3884.5,3884.3,0.36969502]
[1734269180330,2.15398175,3884.9,3884.3,0.36969502]
[1734269180331,2.3183906,3884.4,3884.3,0.36969502]
[1734269180569,1.07699087,3884.4,3884.3,0.33659137]
[1734269180993,1.07699087,3884.4,3883.9,0.7583]
[1734269182375,1.24214831,3884.1,3883.7,0.0333457]
[1734269182529,1.61548631,3884.3,3883.7,0.0333457]
[1734269182530,2.31975922,3884.0,3883.7,0.0333457]
[1734269182730,2.31975922,3883.9,3883.7,0.0333457]
[1734269182937,1.24196116,3883.8,3883.5,2.57498]
[1734269183282,1.07775892,3883.9,3883.6,0.39177601]
[1734269186659,1.07775892,3883.9,3883.6,2.96669601]
[1734269186982,1.07775892,3884.0,3883.6,2.96669601]
[1734269187192,1.07775892,3884.2,3883.9,2.57473]
[1734269187346,1.24194948,3884.1,3884.0,0.336823]
[1734269187553,1.07775892,3884.2,3884.0,0.37065166]
[1734269187851,2.57395,3885.1,3884.0,0.37065166]
[1734269188759,3.0,3885.8,3884.2,2.57451]
[1734269188960,2.57366,3885.6,3884.3,0.29451617]
[1734269189163,2.57366,3885.6,3884.4,2.57439]
[1734269189362,1.07742206,3885.2,3884.4,2.57439]
[1734269189570,2.03433406,3885.3,3884.5,0.03381737]
[1734269189792,1.24160793,3885.2,3884.6,0.7935]
[1734269189989,2.31902999,3885.2,3884.6,0.7935]
[1734269190288,0.956912,3885.3,3884.6,0.7935]
[1734269190289,2.03433406,3885.3,3884.7,0.033725]
[1734269190495,1.24127204,3885.2,3884.7,0.033725]
[1734269190698,2.03433406,3885.3,3884.7,0.033725]
[1734269190909,1.24136343,3885.2,3884.7,0.033725]
[1734269191188,2.03433406,3885.3,3884.7,0.033725]
[1734269191392,1.24112947,3885.2,3884.7,0.033725]
[1734269191688,2.03433406,3885.3,3884.7,0.033725]
[1734269192076,1.21653406,3885.3,3884.7,0.033725]
[1734269192286,0.139112,3885.3,3884.7,0.3738715]
[1734269193049,0.139112,3885.3,3884.7,2.9480415]
[1734269193490,0.139112,3885.3,3884.9,2.57402]
[1734269193694,0.139112,3885.3,3885.1,2.57392]
[1734269193892,0.139112,3885.3,3885.2,0.8296]
[1734269194196,0.139112,3885.3,3885.2,1.20658407]
[1734269194394,0.139112,3885.3,3885.2,0.86289349]
[1734269194613,0.139112,3885.3,3885.2,0.03329349]
[1734269194976,0.139112,3885.3,3884.9,3.40366]
[1734269195528,0.139112,3885.3,3885.0,0.03335526]
[1734269197687,0.139112,3885.3,3885.0,2.60734526]
[1734269197893,0.139112,3885.3,3885.1,0.34369453]
[1734269198323,0.139112,3885.3,3885.2,0.03294287]
[1734269200125,0.139112,3885.3,3885.2,2.60681287]
[1734269201483,0.139112,3885.3,3885.2,3.43641287]
[1734269207266,0.139112,3885.3,3885.2,0.86254287]
[1734269207571,0.139112,3885.3,3885.2,3.43641287]
[1734269207869,0.139112,3885.3,3885.2,3.78005416]
[1734269210558,0.139112,3885.3,3885.2,0.37658416]
[1734269211030,0.139112,3885.3,3885.2,2.95045416]
[1734269211476,0.139112,3885.3,3885.2,3.78005416]
[1734269214032,0.139112,3885.3,3885.2,6.80578753]
[1734269214161,2e-06,3885.3,3885.2,6.78005416]
[1734269214594,2e-06,3885.3,3885.2,7.33005416]
[1734269215071,2e-06,3885.3,3885.2,8.21756131]
[1734269216161,2e-06,3885.3,3885.2,7.33005416]
[1734269216705,2e-06,3885.3,3885.2,8.21722013]
[1734269217215,2e-06,3885.3,3885.2,7.33005416]
[1734269217617,2e-06,3885.3,3885.2,8.21701242]
[1734269218133,2e-06,3885.3,3885.2,7.33005416]
[1734269218625,2e-06,3885.3,3885.2,6.78005416]
[1734269223249,2e-06,3885.3,3885.2,7.33005416]
[1734269226278,2e-06,3885.3,3885.2,6.78005416]
[1734269229745,3.37404417,3886.6,3885.3,5.57376]
[1734269229999,3.37404417,3886.6,3885.4,0.67799442]
[1734269230144,3.37404417,3886.6,3885.4,0.70839952]
[1734269231347,3.37404417,3886.6,3885.4,3.28208952]
[1734269231848,3.37404417,3886.6,3885.5,2.57365]
[1734269232043,3.37404417,3886.6,3885.6,0.03031278]
[1734269232317,3.37404417,3886.6,3885.7,0.32819572]
[1734269232521,3.37404417,3886.6,3885.6,0.03031278]
[1734269232522,0.80110417,3886.6,3885.6,0.03031278]
[1734269232704,2.57335,3886.0,3885.8,0.03040379]
[1734269232890,0.8042,3885.9,3884.9,3.375]
[1734269233093,0.8042,3885.9,3885.0,0.03089243]
[1734269233322,0.7888,3885.6,3885.0,0.03089243]
[1734269233493,3.36241,3885.6,3885.0,0.03089243]
[1734269233700,3.36241,3885.6,3884.6,0.7603]
[1734269233915,3.36241,3885.6,3884.7,1.36152645]
[1734269234118,0.7888,3885.6,3884.7,0.47149607]
[1734269234930,0.7888,3885.6,3884.9,2.57402]
[1734269235354,0.7888,3885.6,3885.0,0.03001988]
[1734269235828,0.7888,3885.6,3885.1,2.57393]
[1734269236017,0.7888,3885.6,3885.2,0.257393]
[1734269236203,0.7888,3885.6,3885.3,0.02988136]
[1734269236530,0.7888,3885.6,3885.2,0.257393]
[1734269236891,0.7888,3886.2,3885.3,0.02988136]
[1734269237436,0.7888,3886.2,3885.4,2.57372]
[1734269237928,0.7888,3886.2,3885.5,0.02990837]
[1734269238154,1.07742206,3886.5,3885.6,0.7603]
[1734269238428,1.86622206,3886.7,3885.8,2.57344]
[1734269238595,0.7888,3886.7,3885.8,2.57344]
[1734269238793,0.7888,3886.7,3885.9,2.6288302]
[1734269239426,0.7888,3886.7,3886.0,2.57333]
[1734269239868,0.7888,3886.7,3886.1,0.02960756]
[1734269241351,1.07742206,3887.0,3886.2,0.7603]
[1734269241503,1.86622206,3887.1,3886.2,3.33346]
[1734269241708,1.2412489,3887.0,3886.3,0.02937206]
[1734269242036,1.86622206,3887.1,3886.3,0.02937206]
[1734269242244,0.7888,3886.5,3886.3,0.02937206]
[1734269242655,0.7888,3886.5,3885.4,0.7603]
[1734269242970,0.7888,3886.5,3885.7,2.57353]
[1734269243325,0.7888,3886.5,3885.8,0.02959804]
[1734269243950,1.61613309,3886.9,3885.8,0.02959804]
[1734269243951,1.07742206,3886.9,3885.9,0.8199]
[1734269244154,0.7741,3886.9,3886.1,2.57325]
[1734269244312,0.7741,3886.9,3886.2,0.339315]
[1734269244515,0.7741,3886.9,3886.2,0.3687666]
[1734269245734,0.7741,3886.9,3886.2,2.6026516]
[1734269246924,0.7741,3886.9,3886.4,2.57302]
[1734269247118,1.07742206,3887.1,3886.6,2.57292]
[1734269247345,1.07742206,3887.1,3886.7,0.8199]
[1734269247680,1.07742206,3887.1,3886.7,0.84903497]
[1734269247886,0.7741,3888.1,3886.8,0.36792103]
[1734269248180,1.27878298,3888.1,3886.9,0.02902839]
[1734269248781,3.85076298,3888.1,3886.9,0.02902839]
[1734269249583,3.85076298,3888.1,3887.0,2.57267]
[1734269249584,0.7741,3888.1,3887.0,2.57267]
[1734269249784,0.7741,3888.1,3887.1,2.59832221]
[1734269249986,0.7741,3888.1,3887.2,0.26273506]
[1734269250187,0.7741,3888.1,3887.5,2.57233]
[1734269250360,0.7741,3888.9,3887.8,2.57213]
[1734269250686,3.34552,3888.9,3887.9,0.02814729]
[1734269250985,2.57151,3888.8,3887.5,2.57229]
[1734269251206,1.85030861,3888.6,3888.0,0.02804871]
[1734269251415,2.57185,3888.3,3887.3,0.8199]
[1734269251919,1.85030861,3888.6,3887.4,0.02832538]
[1734269251920,4.42193861,3888.6,3887.4,0.02832538]
[1734269252465,4.42193861,3888.6,3887.5,0.36834904]
[1734269252712,2.57169,3888.5,3887.5,0.36834904]
[1734269253018,1.85030861,3888.6,3887.6,0.02823315]
[1734269253201,4.42193861,3888.6,3887.6,0.02823315]
[1734269253365,4.42193861,3888.6,3887.3,0.8199]
[1734269253715,1.85030861,3888.6,3887.3,0.8199]
[1734269253935,1.85030861,3888.6,3887.4,0.02832538]
[1734269254070,0.8218,3888.0,3887.4,0.02832538]
[1734269254269,3.39383,3888.0,3887.2,0.26273506]
[1734269254498,3.39383,3888.0,3887.3,0.02803764]
[1734269255174,2.57216,3887.8,3887.3,0.02803764]
[1734269255572,2.57216,3887.8,3886.9,1.07334637]
[1734269255898,2.57216,3887.8,3887.0,0.34857659]
[1734269256076,2.57216,3887.8,3887.1,0.02728542]
[1734269256674,2.57224,3887.7,3886.7,0.8024]
[1734269256995,2.57224,3887.7,3886.8,0.02742381]
[1734269257712,2.57228,3887.6,3886.8,0.02742381]
[1734269257893,2.57228,3887.6,3886.8,0.41040619]
[1734269258465,2.57228,3887.6,3886.8,0.02742381]
[1734269259069,2.57228,3887.6,3886.7,0.8024]
[1734269259319,2.57228,3887.6,3886.8,0.02742381]
[1734269259520,2.57213,3887.9,3886.8,0.02742381]
[1734269260725,0.8218,3888.0,3886.8,0.02742381]
[1734269261037,2.57217,3887.8,3886.8,0.02742381]
[1734269261177,0.8218,3888.0,3886.8,0.02742381]
[1734269261527,0.8218,3888.0,3886.9,0.34027238]
[1734269261879,2.57204,3888.0,3887.0,0.82973155]
[1734269263305,0.8218,3888.2,3887.1,0.02572314]
[1734269263487,3.39368,3888.2,3887.0,0.82973155]
[1734269263682,3.39368,3888.2,3887.1,0.02751434]
[1734269264078,2.57174,3888.5,3887.2,2.57251]
[1734269264287,2.57174,3888.5,3887.4,0.7592]
[1734269264717,2.57174,3888.5,3887.5,0.02732986]
[1734269265801,3.39377,3888.7,3887.5,0.02732986]
[1734269266001,0.8222,3888.7,3887.5,0.02732986]
[1734269266223,2.5718,3888.4,3887.4,0.7592]
[1734269266613,2.5718,3888.4,3887.5,0.02732986]
[1734269266814,2.57182,3888.3,3887.5,0.02732986]
[1734269267126,0.8222,3888.2,3887.4,0.7592]
[1734269268128,2.57204,3888.0,3887.4,0.7592]
[1734269268502,0.8222,3888.2,3887.4,0.7592]
[1734269268716,2.57209,3887.9,3887.4,0.7592]
[1734269269312,2.57217,3887.8,3887.4,0.7592]
[1734269269514,2.57217,3887.8,3886.7,0.7592]
[1734269269715,2.57223,3887.7,3886.8,0.45400257]
[1734269269915,2.57209,3887.9,3886.9,0.7592]
[1734269270119,2.57223,3887.7,3887.0,0.02749734]
[1734269270294,2.57223,3887.7,3886.9,0.7592]
[1734269271500,2.57223,3887.7,3887.0,0.02749734]
[1734269273999,2.5721,3887.9,3887.0,0.02749734]
[1734269274200,2.57192,3888.2,3887.1,0.7995]
[1734269274421,2.57192,3888.2,3887.3,0.7995]
[1734269274734,2.57192,3888.2,3887.4,0.02744638]
[1734269276602,3.32894,3888.5,3887.4,0.02744638]
[1734269276810,2.57176,3888.4,3887.5,0.7995]
[1734269277199,2.57176,3888.4,3887.6,0.02735415]
[1734269277784,2.57176,3888.4,3887.6,0.0270732]
[1734269279656,0.7572,3888.9,3887.7,0.7995]
[1734269279857,2.57164,3888.6,3887.7,0.7995]
[1734269280182,2.57164,3888.6,3887.8,0.02681723]
[1734269282485,3.6898102,3888.9,3887.8,0.02681723]
[1734269282689,1.24995096,3888.8,3887.4,0.7995]
[1734269282891,2.57175,3888.4,3887.4,0.7995]
[1734269283387,2.57175,3888.4,3887.5,0.02682205]
[1734269283587,2.57195,3888.1,3887.5,0.02682205]
[1734269284673,3.64799861,3888.4,3887.5,0.02682205]
[1734269284917,2.57182,3888.3,3887.5,0.02682205]
[1734269285987,0.7572,3888.6,3887.5,0.02682205]
[1734269285988,4.40506861,3888.6,3887.5,0.02682205]
[1734269286188,2.57168,3888.5,3887.5,0.63988421]
[1734269286485,1.25137991,3888.4,3887.6,0.02682839]
[1734269286684,3.64788861,3888.5,3887.6,0.02682839]
[1734269286886,1.25139929,3888.4,3887.6,0.02682839]
[1734269287184,0.7572,3888.6,3887.6,0.02682839]
[1734269287350,2.57181,3888.3,3887.6,0.02682839]
[1734269287550,2.57181,3888.3,3887.4,0.7995]
[1734269287777,2.57181,3888.3,3887.5,0.0268745]
[1734269288349,1.25216094,3888.2,3887.5,0.0268745]
[1734269288549,3.64801861,3888.3,3887.5,0.0268745]
[1734269288794,2.57181,3888.3,3887.5,0.0268745]
[1734269289786,3.64926362,3888.3,3887.5,0.0268745]
[1734269289987,1.07745362,3888.3,3887.6,0.7995]
[1734269290196,1.07745362,3888.4,3887.6,0.7995]
[1734269290357,2.33021342,3888.3,3887.7,0.02675844]
[1734269290554,1.2527598,3888.2,3887.7,0.02675844]
[1734269290754,1.07745362,3888.3,3887.7,0.02675844]
[1734269290948,1.07745362,3888.3,3887.6,0.7995]
[1734269291153,1.07745362,3888.3,3887.7,0.02675844]
[1734269291892,1.25319195,3888.3,3887.8,0.7995]
[1734269292195,1.07745362,3888.4,3887.9,0.02666622]
[1734269292494,2.3305874,3888.4,3887.9,0.02666622]
[1734269292676,1.07745362,3888.4,3887.8,0.7995]
[1734269292990,1.07745362,3888.4,3887.9,0.02664828]
[1734269293365,1.07745362,3888.4,3887.8,0.7995]
[1734269293554,2.33052011,3888.3,3887.8,0.7995]
[1734269293752,1.25306649,3888.2,3887.9,0.02664828]
[1734269293957,1.07745362,3888.3,3887.8,0.7995]
[1734269294292,2.33059572,3888.3,3887.9,0.02664828]
[1734269294493,1.2531421,3888.2,3887.9,0.02664828]
[1734269294667,1.07745362,3888.3,3887.8,0.7995]
[1734269295082,1.07745362,3888.4,3887.9,0.02664828]
[1734269295274,2.33058154,3888.3,3887.9,0.02664828]
[1734269295452,1.25319303,3888.2,3887.8,0.7995]
[1734269295654,1.25319303,3888.1,3887.8,0.7995]
[1734269295850,0.7532,3887.9,3887.1,0.7802]
[1734269296094,2.57221,3887.7,3887.1,0.7802]
[1734269296395,1.25331005,3887.6,3887.1,0.7802]
[1734269296887,1.25331005,3887.6,3887.2,0.02610373]
[1734269297277,2.33076367,3887.6,3887.1,0.7802]
[1734269297653,2.57234,3887.5,3887.2,0.02610373]
[1734269297856,1.07745362,3887.6,3887.2,0.02610373]
[1734269298080,1.07745362,3887.6,3887.1,0.7802]
[1734269298277,1.25338263,3887.7,3887.1,0.7802]
[1734269298278,1.07745362,3887.7,3887.1,0.7802]
[1734269298487,2.33077509,3887.7,3887.2,0.02637557]
[1734269298665,2.33077509,3887.6,3887.2,0.02637557]
[1734269298991,1.07745362,3887.7,3887.2,0.02637557]
[1734269299194,1.07745362,3887.8,3887.2,0.02637557]
[1734269299366,1.07745362,3887.8,3887.2,0.36430613]
[1734269300279,1.07745362,3887.9,3887.2,0.36430613]
[1734269300656,2.33065939,3887.8,3887.2,0.36430613]
[1734269300908,1.07745362,3887.8,3887.2,0.36430613]
[1734269301212,1.07745362,3887.9,3887.2,0.36430613]
[1734269301357,2.33068831,3887.8,3887.2,0.36430613]
[1734269301696,1.07745362,3887.8,3887.2,0.36430613]
[1734269301899,1.07745362,3887.9,3887.3,0.39743854]
[1734269302095,1.07745362,3888.1,3887.4,0.7802]
[1734269302298,1.07745362,3888.2,3887.4,0.8066741]
[1734269302473,1.07745362,3888.2,3887.4,0.7802]
[1734269302660,1.07745362,3888.2,3887.5,0.39884402]
[1734269302853,1.07745362,3888.2,3887.6,0.7802]
[1734269303095,1.07745362,3888.3,3887.6,0.7802]
[1734269303268,1.07745362,3888.3,3887.7,0.02630713]
[1734269303673,1.07745362,3888.3,3887.6,0.7802]
[1734269303879,1.07745362,3888.3,3887.7,0.02630713]
[1734269304075,2.33061332,3888.3,3887.7,0.02630713]
[1734269304379,4.18791043,3888.5,3887.6,1.18988113]
[1734269304380,2.33061332,3888.2,3887.6,1.18988113]
[1734269304580,1.07745362,3888.2,3887.6,1.18988113]
[1734269304781,2.33074591,3888.1,3887.7,0.02630713]
[1734269304985,1.07745362,3888.1,3887.7,0.02630713]
[1734269305328,1.07745362,3888.1,3887.6,0.7802]
[1734269305484,1.07745362,3888.2,3887.8,0.02626102]
[1734269305683,1.07745362,3888.2,3887.7,0.02630713]
[1734269306002,1.07745362,3888.3,3887.8,0.02626102]
[1734269306388,1.07745362,3888.3,3887.6,0.7802]
[1734269306589,1.07745362,3888.3,3887.6,1.11546]
[1734269306790,1.07745362,3888.3,3887.7,0.02630713]
[1734269307516,1.07745362,3888.4,3887.7,0.02630713]
[1734269308375,2.33076728,3888.4,3887.7,0.02630713]
[1734269308582,1.25331366,3888.3,3887.7,0.02630713]
[1734269308775,1.07745362,3888.4,3887.7,0.39771584]
[1734269308977,1.61618043,3888.6,3887.7,0.39771584]
[1734269308978,1.07745362,3888.5,3887.8,0.7802]
[1734269309210,2.33072823,3888.5,3887.8,0.7802]
[1734269309428,1.25327461,3888.4,3887.9,0.02616111]
[1734269309723,1.07745362,3888.5,3887.8,0.7802]
[1734269309975,1.07745362,3888.5,3888.0,0.02587655]
[1734269310146,1.07745362,3888.5,3887.9,0.02592265]
[1734269310628,1.07745362,3888.6,3887.9,2.93582592]
[1734269310921,1.07745362,3888.6,3888.0,0.7802]
[1734269311100,1.07745362,3888.6,3888.1,0.02584838]
[1734269311427,1.07745362,3888.7,3888.1,0.02584838]
[1734269311641,1.07745362,3888.6,3888.1,0.02584838]
[1734269311797,1.07745362,3888.6,3888.2,0.7802]
[1734269311979,2.15490724,3889.1,3888.1,0.39744355]
[1734269311980,1.07745362,3889.0,3888.4,0.7802]
[1734269312185,1.78016093,3889.2,3888.4,0.7802]
[1734269312186,1.07745362,3889.1,3888.4,0.7802]
[1734269312447,0.1639805,3889.2,3888.5,0.02526816]
[1734269312448,1.24143412,3889.2,3888.5,0.02526816]
[1734269313225,1.25246945,3889.1,3888.5,0.02526816]
[1734269313424,1.24143412,3889.2,3888.5,0.02526816]
[1734269313727,1.25224546,3889.1,3888.5,0.02526816]
[1734269313881,1.07745362,3889.1,3888.5,0.02526816]
[1734269314421,1.07745362,3888.8,3888.0,0.7536]
[1734269314637,1.25234198,3888.7,3888.0,0.7536]
[1734269314847,1.07745362,3888.8,3888.1,0.02540785]
[1734269315256,2.57185,3888.3,3888.1,0.02540785]
[1734269315595,2.57196,3888.1,3887.6,0.7536]
[1734269318204,1.07745362,3888.3,3887.6,0.7536]
[1734269318420,1.25276302,3888.2,3887.6,0.7536]
[1734269318558,3.64928362,3888.3,3887.6,0.7536]
[1734269318902,1.07745362,3888.3,3887.6,0.7536]
[1734269319311,1.07745362,3888.3,3887.7,0.02571624]
[1734269319637,2.33028258,3888.2,3887.6,0.7536]
[1734269319756,1.07745362,3888.2,3887.6,0.7536]
[1734269320069,2.33044551,3888.3,3887.7,0.02571624]
[1734269320276,2.33044527,3888.2,3887.7,0.02571624]
[1734269320498,1.07745362,3888.2,3887.7,0.02571624]
[1734269320657,1.07745362,3888.3,3887.7,0.02571624]
[1734269321877,1.07745362,3888.3,3887.7,0.36088786]
[1734269322080,2.33041988,3888.3,3887.8,0.7536]
[1734269322272,1.25296626,3888.2,3887.8,0.7536]
[1734269322470,1.07745362,3888.3,3887.8,0.7536]
[1734269322917,1.07745362,3888.3,3887.9,0.02562401]
[1734269323874,1.07745362,3888.5,3887.9,0.39428857]
[1734269324360,2.86907997,3888.7,3887.9,0.39428857]
[1734269324361,2.33035316,3888.6,3887.9,0.39428857]
[1734269324510,1.25285013,3888.5,3887.9,0.39428857]
[1734269324707,1.07745362,3888.6,3888.0,0.7597]
[1734269324908,1.07745362,3888.6,3888.1,0.02577975]
[1734269325260,1.07745362,3888.6,3888.0,1.13231886]
[1734269325464,2.33029905,3888.6,3888.0,1.13231886]
[1734269325604,1.25284543,3888.5,3888.1,0.02577975]
[1734269325801,1.07745362,3888.6,3888.1,0.02577975]
[1734269326548,2.3302665,3888.7,3888.1,0.39879661]
[1734269326838,1.07745362,3888.9,3888.3,0.7597]
[1734269327008,1.07745362,3889.0,3888.3,0.7597]
[1734269327210,1.25268594,3888.9,3888.4,0.02564144]
[1734269327406,1.07745362,3889.0,3888.4,0.02564144]
[1734269327657,1.07745362,3889.0,3888.3,0.7597]
[1734269327868,1.25254876,3888.9,3888.3,0.7597]
[1734269328165,1.07745362,3889.0,3888.3,1.092857]
[1734269328371,1.07745362,3889.0,3888.4,0.02555561]
[1734269328655,1.07745362,3889.1,3888.3,1.092857]
[1734269328806,1.26352029,3889.0,3888.3,1.092857]
[1734269329010,1.07745362,3889.1,3888.4,0.02539857]
[1734269329261,1.26352052,3889.0,3888.4,0.02539857]
[1734269329409,1.07745362,3889.1,3888.4,0.02539857]
[1734269329610,1.26339901,3889.0,3888.3,1.092857]
[1734269329913,1.07745362,3889.1,3888.4,0.02539857]
[1734269330162,1.26336868,3889.0,3888.4,0.02539857]
[1734269330369,1.07745362,3889.1,3888.3,1.092857]
[1734269330589,1.24143412,3889.2,3888.4,0.02539857]
[1734269330730,2.34067893,3889.1,3888.3,0.7597]
[1734269330941,2.34067893,3889.0,3888.4,0.02539857]
[1734269331291,1.07745362,3889.0,3888.3,0.7597]
[1734269331783,1.78016093,3889.2,3888.3,0.7597]
[1734269331784,1.07745362,3889.1,3888.3,0.7597]
[1734269331940,1.26316467,3889.0,3888.4,0.02539857]
[1734269332142,1.07745362,3889.1,3888.3,0.7597]
[1734269332341,1.26316194,3889.0,3888.3,0.7597]
[1734269332583,1.07745362,3889.1,3888.3,0.7597]
[1734269333900,1.26297848,3889.0,3888.3,0.7597]
[1734269334083,1.07745362,3889.1,3888.3,0.7597]
[1734269335210,1.24143412,3889.2,3888.3,0.7597]
[1734269335490,2.34036194,3889.1,3888.3,0.7597]
[1734269335694,1.07745362,3889.1,3888.3,0.7597]
[1734269335905,3.81266412,3889.2,3888.3,0.7597]
[1734269336187,2.34034399,3889.1,3888.3,0.7597]
[1734269336353,1.07745362,3889.1,3888.3,0.7597]
[1734269336542,1.24143412,3889.2,3888.3,0.7597]
[1734269336738,2.34025606,3889.1,3888.3,0.7597]
[1734269336973,1.07745362,3889.1,3888.3,0.7597]
[1734269337548,1.07745362,3888.8,3887.8,0.7761]
[1734269337804,1.07745362,3888.6,3887.9,0.02543836]
[1734269337986,1.26282583,3888.5,3887.8,0.7761]
[1734269338626,2.34027945,3888.5,3887.8,0.7761]
[1734269338832,1.07745362,3888.5,3887.8,0.7761]
[1734269339402,1.07745362,3888.5,3887.9,0.02543836]
[1734269339621,1.07745362,3888.6,3887.9,0.02543836]
[1734269339788,1.26283891,3888.5,3887.9,0.02543836]
[1734269340151,1.07745362,3888.6,3887.9,0.02543836]
[1734269340288,1.26299643,3888.5,3887.9,0.02543836]
[1734269340489,1.07745362,3888.6,3887.9,0.02543836]
[1734269341033,1.07745362,3888.7,3887.9,0.02543836]
[1734269341241,1.26292965,3888.6,3887.9,0.02543836]
[1734269341399,1.07745362,3888.7,3887.9,0.02543836]
[1734269341617,1.26293934,3888.6,3887.9,0.02543836]
[1734269341818,1.07745362,3888.7,3887.9,0.02543836]
[1734269342019,1.07745362,3888.8,3888.1,0.7761]
[1734269342405,1.07745362,3888.8,3888.2,0.02533685]
[1734269342406,1.26290327,3888.7,3888.2,0.02533685]
[1734269342603,1.07745362,3888.8,3888.1,0.7761]
[1734269342805,1.26304221,3888.7,3888.1,0.7761]
[1734269343049,1.07745362,3888.8,3888.1,0.7761]
[1734269343211,1.26304422,3888.7,3888.1,0.7761]
[1734269343409,1.07745362,3888.8,3888.1,0.7761]
[1734269343681,1.26325553,3888.7,3888.1,0.7761]
[1734269344005,1.07745362,3888.8,3888.1,0.7761]
[1734269344251,1.26327747,3888.7,3888.1,0.7761]
[1734269344526,1.07745362,3888.8,3888.2,0.02539064]
[1734269344738,1.26346082,3888.7,3888.1,0.7761]
[1734269344922,1.07745362,3888.8,3888.2,0.02539064]
[1734269345109,1.07745362,3888.8,3888.1,0.7761]
[1734269345309,1.26343363,3888.7,3888.1,0.7761]
[1734269345548,1.07745362,3888.8,3888.2,0.02539064]
[1734269345847,1.26358087,3888.7,3888.2,0.02539064]
[1734269346145,1.07745362,3888.8,3888.1,0.7761]
[1734269346348,1.2635884,3888.7,3888.2,0.02539064]
[1734269346514,1.2635884,3888.7,3887.6,2.57227]
[1734269346515,1.07745362,3889.0,3888.3,0.7733]
[1734269346843,2.34116318,3888.9,3888.4,0.02529845]
[1734269347048,1.26370956,3888.8,3888.4,0.02529845]
[1734269347220,1.07745362,3888.9,3888.3,0.7733]
[1734269347607,1.07745362,3888.9,3888.4,0.02523169]
[1734269347844,1.26388738,3888.8,3888.4,0.02523169]
[1734269348152,1.07745362,3888.9,3888.4,0.02523169]
[1734269348356,1.07745362,3888.9,3888.5,0.7733]
[1734269348663,1.07745362,3889.0,3888.5,0.7733]
[1734269349041,1.07745362,3889.0,3888.6,0.02484296]
[1734269349427,1.07745362,3889.1,3888.6,0.02484296]
[1734269349622,1.26381029,3889.0,3888.6,0.02484296]
[1734269349840,1.07745362,3889.1,3888.6,0.02484296]
[1734269350046,1.26381322,3889.0,3888.6,0.02484296]
[1734269350361,1.07745362,3889.1,3888.6,0.02484296]
[1734269350823,1.24143412,3889.2,3888.6,0.02484296]
[1734269351027,1.24143412,3889.2,3888.7,0.7733]
[1734269351028,1.26376244,3889.1,3888.7,0.7733]
[1734269351244,1.24143412,3889.2,3888.7,0.7733]
[1734269351423,1.2636973,3889.1,3888.8,0.02477439]
[1734269351633,1.24143412,3889.2,3888.8,0.02477439]
[1734269351911,1.26374319,3889.1,3888.7,0.7733]
[1734269352105,1.24143412,3889.2,3888.9,0.02472831]
[1734269352349,2.34119691,3889.1,3888.8,0.02477439]
[1734269352530,1.07745362,3889.1,3889.0,0.02451537]
[1734269352846,2.34122223,3889.1,3888.7,0.7733]
[1734269353053,1.26376657,3889.0,3888.7,0.7733]
[1734269353249,1.26381714,3888.9,3888.8,0.02460753]
[1734269353477,1.26381714,3888.9,3888.7,0.7733]
[1734269353640,1.07745362,3889.0,3888.0,2.572]
[1734269353841,1.26381978,3888.9,3888.8,0.02460276]
[1734269354092,1.26381978,3888.9,3888.2,0.7887]
[1734269354377,4.35142093,3889.2,3888.3,0.0248332]
[1734269354378,1.07745362,3889.1,3888.3,0.0248332]
[1734269354582,2.57143,3888.9,3888.3,0.0248332]
[1734269354742,0.55,3888.8,3888.2,0.7887]
[1734269354944,0.55,3888.8,3888.3,0.02485064]
[1734269355251,1.90425362,3889.0,3888.2,0.7887]
[1734269355252,0.55,3888.9,3888.2,0.7887]
[1734269355681,0.55,3888.9,3888.3,0.02485064]
[1734269356779,0.55,3889.0,3888.4,0.7887]
[1734269356941,2.89123481,3889.0,3888.5,0.0247903]
[1734269357280,1.62745362,3889.0,3888.4,0.7887]
[1734269357791,0.55,3889.0,3888.4,0.7887]
[1734269358347,1.07745362,3889.1,3888.4,0.7887]
[1734269358653,0.55,3889.1,3888.6,0.7887]
[1734269359052,1.24143412,3889.2,3888.7,0.02469812]
[1734269359490,1.24143412,3889.2,3888.6,0.7887]
[1734269359713,1.24143412,3889.2,3888.8,0.02465204]
[1734269359854,1.24143412,3889.2,3888.7,0.02469812]
[1734269360195,1.26363949,3889.1,3888.8,0.02465204]
[1734269360460,0.1639805,3889.2,3888.6,0.7887]
[1734269360461,1.24143412,3889.2,3888.6,0.7887]
[1734269360600,0.1639805,3889.2,3888.6,0.7887]
[1734269360936,0.1639805,3889.2,3888.8,0.7887]
[1734269361237,0.1639805,3889.2,3888.9,0.02459652]
[1734269361538,0.1639805,3889.2,3888.8,0.7887]
[1734269362044,0.1639805,3889.2,3888.9,0.02459652]
[1734269367037,0.1639805,3889.2,3889.0,0.7887]
[1734269367418,0.1639805,3889.2,3889.1,0.02440426]
[1734269367613,0.1639805,3889.2,3889.0,0.7887]
[1734269367884,0.1639805,3889.2,3889.1,0.02440426]
[1734269368155,0.1639805,3889.2,3889.0,0.7887]
[1734269368354,0.1639805,3889.2,3889.1,0.02440426]